bitfinex-derivatives/quotes_ETHF0:USTF0_20260207
["timestamp","ask_amount","ask_price","bid_price","bid_amount"]
[1770445692024,11.7631745,2082.3,2080.9,36.1082068]
[1770445692529,11.7631745,2082.3,2081.0,10.89670918]
[1770445692926,11.5228945,2082.3,2081.0,10.89670918]
[1770445693930,11.5228945,2082.3,2081.2,10.89670918]
[1770445695225,11.5228945,2082.3,2081.4,10.89670918]
[1770445696633,11.5228945,2082.3,2081.6,10.89670918]
[1770445698634,11.5228945,2082.3,2081.6,36.24170918]
[1770445699934,11.5228945,2082.3,2081.7,10.89670918]
[1770445702031,11.5228945,2082.3,2081.5,25.464]
[1770445702930,11.5228945,2082.3,2081.4,10.89670918]
[1770445703931,0.00413988,2082.9,2081.4,10.89670918]
[1770445703932,11.33822686,2082.8,2081.4,10.89670918]
[1770445704326,11.33822686,2082.8,2081.6,10.89670918]
[1770445708337,11.33822686,2082.8,2081.8,10.89670918]
[1770445708636,11.33822686,2082.8,2082.0,10.89670918]
[1770445709238,11.33822686,2082.8,2081.9,36.42770918]
[1770445709437,11.33822686,2082.8,2081.9,25.531]
[1770445709637,11.33822686,2082.8,2081.5,10.89670918]
[1770445709839,11.33822686,2082.8,2081.7,10.89670918]
[1770445710138,11.33822686,2082.8,2081.6,22.449]
[1770445710338,11.33822686,2082.8,2081.6,33.34570918]
[1770445711336,11.33822686,2082.8,2081.7,10.89670918]
[1770445718236,11.33822686,2082.8,2081.6,22.449]
[1770445718542,11.69598711,2082.6,2081.5,11.48122094]
[1770445720042,11.69598711,2082.6,2081.4,25.745]
[1770445720541,11.69598711,2082.6,2081.4,37.22622094]
[1770445721541,11.69598711,2082.6,2081.5,11.48122094]
[1770445723138,11.69598711,2082.4,2081.2,11.48122094]
[1770445723343,11.69598711,2082.4,2081.2,37.33022094]
[1770445723741,11.69598711,2082.4,2081.3,11.48122094]
[1770445725647,11.69598711,2082.4,2081.1,25.892]
[1770445725847,11.69598711,2082.4,2081.2,11.48122094]
[1770445727050,11.93625711,2082.4,2081.2,11.48122094]
[1770445727250,11.69598711,2082.2,2081.1,25.892]
[1770445727645,11.69598711,2082.2,2081.1,37.37322094]
[1770445728251,11.69598711,2082.2,2081.2,11.48122094]
[1770445734660,11.69598711,2081.8,2080.9,0.00349762]
[1770445734850,11.69598711,2081.4,2080.2,11.48122094]
[1770445735860,11.70146622,2081.4,2080.2,11.48491625]
[1770445736351,11.69598711,2081.3,2080.2,11.48491625]
[1770445742460,0.00547911,2081.4,2080.2,11.48491625]
[1770445742865,0.00547911,2081.4,2080.2,14.34946624]
[1770445744165,11.70146622,2081.4,2080.2,14.34946624]
[1770445745267,11.70146622,2081.4,2080.2,11.48491625]
[1770445746867,11.94185622,2081.4,2080.2,11.48491625]
[1770445748059,11.6456028,2081.2,2080.2,11.48491625]
[1770445748370,11.6456028,2081.0,2079.8,11.30786665]
[1770445748964,11.8860328,2081.0,2079.8,11.30786665]
[1770445749463,11.77670998,2080.8,2079.8,0.0044488]
[1770445749763,11.77670998,2080.5,2079.5,11.48310269]
[1770445750470,11.77670998,2080.5,2079.5,11.78244118]
[1770445750671,11.77670998,2080.5,2079.5,11.78853491]
[1770445752565,11.77670998,2080.5,2079.5,11.48919642]
[1770445755570,11.77670998,2080.5,2079.5,0.00609373]
[1770445755765,11.77670998,2080.5,2079.5,11.48919642]
[1770445758077,12.01719998,2080.5,2079.5,0.00609373]
[1770445758976,12.01719998,2080.5,2079.5,11.48919642]
[1770445760174,11.77670998,2080.5,2079.5,11.48919642]
[1770445762078,11.77670998,2080.7,2079.5,11.48919642]
[1770445763683,11.77670998,2080.7,2079.5,14.35374641]
[1770445764378,11.77670998,2080.7,2079.7,11.48310269]
[1770445770186,11.77670998,2080.0,2078.7,11.48310269]
[1770445770387,12.01726998,2079.9,2078.5,11.48310269]
[1770445771078,12.02326913,2079.9,2078.5,11.48881817]
[1770445771578,11.77670998,2079.8,2078.5,11.48881817]
[1770445773486,0.00599915,2079.9,2078.8,11.48310269]
[1770445773789,0.00599915,2079.9,2078.8,14.34765268]
[1770445773989,0.00599915,2079.9,2079.0,11.48310269]
[1770445774188,11.78270913,2079.9,2079.0,11.48310269]
[1770445776389,0.00599915,2079.9,2079.0,11.48310269]
[1770445777382,11.07967296,2079.9,2079.0,11.48310269]
[1770445783596,11.07967296,2079.9,2078.6,10.76464847]
[1770445783897,11.07967296,2079.9,2078.8,10.76464847]
[1770445786996,11.07967296,2079.9,2078.9,10.76464847]
[1770445788002,0.00599915,2079.9,2078.9,13.62919846]
[1770445788195,0.00599915,2079.9,2079.0,10.76464847]
[1770445788600,0.00599915,2079.9,2079.1,10.76464847]
[1770445789500,11.07367381,2080.3,2079.1,10.76464847]
[1770445789699,11.07367381,2080.3,2079.3,10.76464847]
[1770445790502,11.07810994,2080.3,2079.3,10.76464847]
[1770445798301,11.07810994,2080.3,2078.9,2.86454999]
[1770445798302,11.07810994,2080.3,2079.0,10.76464847]
[1770445800703,11.07367381,2080.2,2079.0,10.76464847]
[1770445801209,11.07367381,2080.0,2078.8,10.76464847]
[1770445801409,11.07367381,2079.9,2078.6,10.76464847]
[1770445801712,11.07367381,2079.6,2078.5,0.00571548]
[1770445802009,11.07367381,2079.5,2078.5,10.77036395]
[1770445806708,10.87145295,2079.0,2078.3,2.77408639]
[1770445806912,10.87145295,2079.0,2078.2,10.8722743]
[1770445807516,10.87145295,2079.0,2078.0,10.8722743]
[1770445807716,10.87145295,2079.0,2077.9,0.30930882]
[1770445807918,10.87145295,2079.0,2076.9,4.30567555]
[1770445808110,11.11219295,2078.3,2075.9,4.30567555]
[1770445808311,10.87145295,2078.0,2076.1,10.8722743]
[1770445808515,10.87145295,2078.0,2076.1,11.18095128]
[1770445808917,10.87736654,2078.0,2076.1,11.18494323]
[1770445809213,10.87736654,2078.0,2076.1,13.24707379]
[1770445809517,10.87736654,2078.0,2076.7,11.57764562]
[1770445811212,0.00591359,2078.0,2076.7,11.57764562]
[1770445811517,10.97333599,2078.0,2076.7,11.57764562]
[1770445814320,10.9674224,2078.8,2077.7,11.57764562]
[1770445815121,10.97175439,2078.8,2077.7,11.58301043]
[1770445816616,0.00433199,2078.8,2077.7,11.58301043]
[1770445818619,0.00433199,2078.8,2077.7,11.82381043]
[1770445820219,0.00433199,2078.8,2077.9,11.57764562]
[1770445820420,10.9674224,2079.2,2077.9,11.57764562]
[1770445820619,10.9674224,2079.2,2077.9,11.81842562]
[1770445821522,10.97321268,2079.2,2077.9,11.81842562]
[1770445821927,10.97321268,2079.2,2078.1,11.57764562]
[1770445822224,10.97321268,2079.2,2078.4,11.57764562]
[1770445822225,0.00579028,2079.2,2078.4,11.57764562]
[1770445823716,10.9674224,2079.6,2078.4,11.57764562]
[1770445824519,10.97352888,2079.6,2078.7,11.57764562]
[1770445826120,10.97352888,2079.6,2078.7,11.81833562]
[1770445828727,10.97352888,2079.6,2078.7,11.57764562]
[1770445829225,10.9674224,2080.2,2078.7,11.57764562]
[1770445829426,10.9674224,2080.2,2078.7,13.63977618]
[1770445830330,10.97331354,2080.2,2078.7,13.63977618]
[1770445832227,10.97331354,2080.2,2078.7,13.88046618]
[1770445833126,7.10073205,2081.2,2078.7,13.88046618]
[1770445833127,10.9674224,2080.7,2079.3,11.57764562]
[1770445833326,10.9674224,2080.9,2079.5,11.57764562]
[1770445834031,10.97326728,2080.9,2079.5,11.87686783]
[1770445835721,10.97326728,2080.9,2079.7,11.23212783]
[1770445840331,0.00584488,2080.9,2080.0,11.23212783]
[1770445840537,11.48802117,2081.3,2080.0,11.23212783]
[1770445840834,11.48802117,2082.2,2080.4,11.23212783]
[1770445841634,11.49255763,2082.2,2080.4,11.23212783]
[1770445847836,11.49255763,2082.2,2080.4,11.47262783]
[1770445849529,11.49255763,2082.2,2080.6,11.23212783]
[1770445849739,11.49255763,2082.2,2080.6,11.47259783]
[1770445850237,11.49255763,2082.2,2080.4,4.2715265]
[1770445850238,11.49255763,2082.2,2080.8,11.23212783]
[1770445851139,11.73285763,2082.2,2080.8,11.23212783]
[1770445851740,11.48802117,2082.0,2080.6,11.23212783]
[1770445852135,0.00453646,2082.2,2079.9,11.23212783]
[1770445852136,11.48802117,2081.7,2079.9,11.23212783]
[1770445852336,11.72837117,2081.7,2079.9,11.23212783]
[1770445856445,11.48802117,2081.5,2079.9,11.23212783]
[1770445858340,11.48802117,2081.5,2080.1,11.23212783]
[1770445863448,11.48802117,2081.5,2080.3,11.23212783]
[1770445863642,11.48802117,2081.5,2080.5,11.23212783]
[1770445866755,11.48802117,2081.5,2080.6,7.42761716]
[1770445867052,11.48802117,2081.5,2080.2,11.39915628]
[1770445868448,11.48802117,2081.5,2080.4,11.39915628]
[1770445868650,11.48802117,2081.5,2080.5,7.42991281]
[1770445868850,11.48802117,2081.5,2080.7,11.59261397]
[1770445869249,11.48802117,2081.5,2080.5,11.59261397]
[1770445869557,11.48802117,2081.5,2080.3,11.59261397]
[1770445870561,11.48802117,2081.5,2080.1,11.59261397]
[1770445874671,11.48802117,2081.5,2080.4,2.86872689]
[1770445874873,11.48802117,2081.5,2080.5,11.59261397]
[1770445875666,11.48802117,2081.5,2080.5,14.46134086]
[1770445877168,11.48802117,2081.5,2080.7,11.59261397]
[1770445879277,10.74533421,2082.0,2081.0,11.59261397]
[1770445879570,0.00453646,2082.2,2081.0,11.59809271]
[1770445879874,7.34099205,2082.5,2081.0,11.59809271]
[1770445879875,10.74533421,2082.6,2081.6,11.59261397]
[1770445880667,10.75087846,2082.6,2081.4,11.59261397]
[1770445880871,10.75087846,2082.6,2081.2,11.59261397]
[1770445882676,10.74533421,2082.4,2081.2,11.59261397]
[1770445886078,10.75087846,2082.6,2081.4,11.59261397]
[1770445889076,10.74533421,2082.4,2081.1,11.59261397]
[1770445891183,10.74533421,2082.4,2081.0,11.59809271]
[1770445892682,10.74533421,2082.2,2081.0,11.59809271]
[1770445902094,10.74533421,2082.2,2081.0,0.00547874]
[1770445902297,11.72080268,2082.0,2081.0,0.00547874]
[1770445904299,11.72080268,2082.0,2081.0,11.10454937]
[1770445904696,11.72080268,2082.4,2081.4,11.09907063]
[1770445905701,11.72634693,2082.6,2081.5,11.09907063]
[1770445906703,11.72634693,2082.6,2081.6,11.09907063]
[1770445906904,0.00554425,2082.6,2081.7,11.09907063]
[1770445908606,0.00554425,2082.6,2081.8,11.09907063]
[1770445909308,11.72080268,2083.0,2081.8,11.09907063]
[1770445909509,11.72080268,2083.2,2082.0,11.09907063]
[1770445910312,11.7261464,2083.2,2082.0,11.09907063]
[1770445910906,11.9663264,2083.2,2081.8,11.09907063]
[1770445911107,11.72080268,2083.0,2081.8,11.09907063]
[1770445911307,11.72080268,2082.8,2081.6,11.09907063]
[1770445912707,11.72080268,2083.0,2081.7,2.05816371]
[1770445913015,11.72080268,2083.0,2082.0,11.09907063]
[1770445914111,11.7261464,2083.2,2082.0,11.09907063]
[1770445923411,11.7261464,2083.2,2082.1,11.09907063]
[1770445926306,0.00534372,2083.2,2082.1,11.09907063]
[1770445926509,5.024e-05,2083.2,2082.3,11.00134067]
[1770445926917,10.7614634,2083.2,2082.3,11.00134067]
[1770445927618,10.7614634,2083.2,2081.9,11.00134067]
[1770445934220,11.0016334,2083.2,2081.9,11.00134067]
[1770445934425,11.662512,2083.1,2081.9,11.00134067]
[1770445936822,11.662512,2083.0,2081.9,11.00134067]
[1770445937324,11.662512,2082.9,2081.7,11.62617076]
[1770445939927,11.662512,2082.9,2081.9,11.62617076]
[1770445941721,11.662512,2083.1,2082.1,11.62617076]
[1770445941926,11.662512,2083.1,2082.1,14.48794398]
[1770445943031,11.662512,2083.1,2082.2,4.69133734]
[1770445943224,11.662512,2083.1,2082.3,11.62617076]
[1770445943428,11.662512,2083.1,2082.5,11.62617076]
[1770445943630,5.024e-05,2083.2,2082.5,11.63090972]
[1770445944724,11.662512,2083.8,2082.7,11.62617076]
[1770445945831,11.6674861,2083.8,2082.7,11.62617076]
[1770445949936,11.6674861,2083.8,2082.7,14.48794398]
[1770445950130,11.6674861,2083.8,2082.9,11.62617076]
[1770445951332,11.6674861,2083.8,2082.6,3.13066154]
[1770445951333,11.6674861,2083.8,2082.7,11.62617076]
[1770445954941,11.6674861,2083.8,2082.5,11.63090972]
[1770445960852,11.9075961,2083.8,2082.5,11.63090972]
[1770445962363,10.82305911,2083.7,2082.5,11.63090972]
[1770445963756,10.82305911,2083.7,2082.5,0.00473896]
[1770445963961,17.96454138,2083.6,2082.5,0.00473896]
[1770445964260,17.96454138,2083.6,2082.5,10.75399745]
[1770445964261,10.82305911,2083.5,2082.5,10.75399745]
[1770445970163,10.82305911,2083.5,2082.5,13.61577067]
[1770445970363,10.82305911,2083.5,2082.6,10.74925849]
[1770445973764,10.82305911,2083.7,2082.8,10.74925849]
[1770445974166,10.82305911,2083.7,2082.9,10.74925849]
[1770445974667,0.0049741,2083.8,2082.9,10.74925849]
[1770445974862,10.82803321,2083.8,2082.9,10.74925849]
[1770445984572,10.82803321,2083.8,2082.7,13.61103171]
[1770445984769,10.82803321,2083.8,2082.5,2.86651218]
[1770445984974,10.82305911,2083.7,2082.6,10.74925849]
[1770445985175,10.82305911,2083.7,2082.5,10.75399745]
[1770445985376,10.82305911,2083.6,2082.5,10.75399745]
[1770445986870,11.06318911,2083.6,2082.5,10.75399745]
[1770445987174,11.78248242,2083.5,2082.5,0.00473896]
[1770445987374,11.78248242,2083.5,2082.5,11.34202025]
[1770445999685,11.78248242,2083.5,2082.5,0.00473896]
[1770445999987,11.72601248,2083.1,2082.0,10.68274363]
[1770446000183,11.72601248,2083.0,2082.0,10.68274363]
[1770446000884,11.72601248,2083.0,2082.0,10.68678428]
[1770446004893,11.96621248,2083.0,2082.0,0.00404065]
[1770446005188,11.72601248,2082.8,2081.6,10.68274363]
[1770446005980,11.72601248,2082.8,2081.6,10.68646115]
[1770446010490,7.14148227,2083.0,2081.6,0.00371752]
[1770446010491,11.72601248,2082.5,2081.6,0.00371752]
[1770446010894,11.72601248,2082.5,2080.7,4.2715265]
[1770446010895,11.72601248,2082.5,2081.1,10.68274363]
[1770446011090,11.72601248,2082.3,2081.1,10.68274363]
[1770446011395,11.96629248,2082.3,2081.1,10.68274363]
[1770446011788,11.97084008,2082.3,2081.1,10.68839294]
[1770446014991,11.72601248,2082.1,2081.1,0.00564931]
[1770446015196,11.72601248,2081.9,2081.1,10.68839294]
[1770446015504,11.72601248,2081.9,2081.1,0.00564931]
[1770446016099,11.96633248,2081.9,2080.7,10.9765819]
[1770446016895,11.96633248,2081.9,2080.7,10.98232145]
[1770446019699,11.72601248,2081.9,2080.7,10.98232145]
[1770446021799,11.96634248,2081.9,2080.7,10.98232145]
[1770446023904,10.85894769,2081.6,2080.7,0.00573955]
[1770446024807,7.14602987,2082.3,2079.5,4.29346521]
[1770446024808,10.85894769,2081.3,2080.1,10.9765819]
[1770446025812,10.85894769,2081.3,2080.1,10.98228412]
[1770446030615,0.0045476,2082.3,2080.1,10.98228412]
[1770446030812,10.85894769,2082.1,2080.1,10.98228412]
[1770446031014,10.85894769,2082.1,2080.2,10.9765819]
[1770446031212,10.85894769,2082.1,2080.3,15.6450212]
[1770446031412,10.85894769,2082.1,2080.4,10.9765819]
[1770446031611,10.85894769,2082.1,2080.5,10.9765819]
[1770446032218,10.85894769,2082.1,2080.7,10.9765819]
[1770446033814,0.0045476,2082.3,2081.0,10.9765819]
[1770446034216,10.86349529,2082.3,2081.0,10.9765819]
[1770446035421,10.86349529,2082.3,2081.1,10.9765819]
[1770446040615,11.10377529,2082.3,2080.7,10.9765819]
[1770446040828,10.85894769,2082.0,2080.7,10.9765819]
[1770446048132,10.85894769,2082.0,2080.8,11.60184241]
[1770446054932,10.84385719,2082.2,2081.0,11.10532278]
[1770446055326,10.84385719,2082.2,2081.1,11.10532278]
[1770446055931,0.0045476,2082.3,2081.3,11.10532278]
[1770446056534,0.0045476,2082.3,2081.4,11.10532278]
[1770446057934,10.84840479,2082.3,2081.4,11.10532278]
[1770446060835,10.84840479,2082.3,2081.3,11.10532278]
[1770446061832,10.84840479,2082.3,2081.0,11.10532278]
[1770446062035,10.84840479,2082.3,2081.0,13.97292973]
[1770446062238,10.84840479,2082.3,2081.1,11.10532278]
[1770446063844,10.84840479,2082.3,2081.2,11.10532278]
[1770446068046,10.84840479,2082.3,2080.9,11.10532278]
[1770446068241,10.84385719,2082.2,2080.9,11.10532278]
[1770446070746,7.14148227,2082.1,2080.9,11.10532278]
[1770446070942,10.84385719,2082.0,2080.9,11.10532278]
[1770446072841,10.84385719,2082.0,2081.0,11.10532278]
[1770446075652,10.84385719,2082.0,2081.0,13.0896568]
[1770446077460,10.84385719,2082.0,2081.1,11.08290509]
[1770446080160,11.68826895,2081.8,2080.6,11.08290509]
[1770446080362,11.68826895,2081.7,2080.6,11.08290509]
[1770446094167,11.68826895,2081.7,2080.3,11.08290509]
[1770446094763,11.68826895,2081.6,2080.3,11.08290509]
[1770446097173,7.14148227,2081.5,2080.3,11.08290509]
[1770446097373,11.68826895,2081.4,2080.3,11.08290509]
[1770446100867,11.68826895,2081.6,2080.4,15.8025452]
[1770446101068,11.68826895,2081.6,2080.5,11.08290509]
[1770446102473,11.68826895,2081.9,2080.7,11.08290509]
[1770446103176,11.68826895,2082.1,2080.7,11.08290509]
[1770446104477,11.68826895,2082.1,2080.8,11.08290509]
[1770446106275,11.68826895,2082.1,2080.9,11.75753507]
[1770446109873,11.05549588,2081.9,2080.5,14.36401727]
[1770446110079,11.05549588,2081.7,2080.5,11.49641032]
[1770446117493,11.29585588,2081.7,2080.2,11.49641032]
[1770446117693,11.05549588,2081.4,2080.2,11.49641032]
[1770446122795,11.05549588,2081.2,2080.1,11.50211254]
[1770446122995,11.05549588,2081.4,2080.3,11.49641032]
[1770446125693,11.05549588,2081.8,2080.5,11.49641032]
[1770446127294,11.05549588,2081.8,2080.6,11.49641032]
[1770446127595,11.05549588,2081.8,2080.8,11.49641032]
[1770446130604,11.05549588,2081.9,2080.8,11.49641032]
[1770446132801,11.05549588,2081.8,2080.8,11.49641032]
[1770446133100,11.05549588,2081.8,2080.6,11.49641032]
[1770446136203,11.05549588,2081.8,2080.7,11.49618049]
[1770446138408,11.05549588,2081.8,2080.9,11.49618049]
[1770446138608,11.00013903,2082.0,2080.9,11.49618049]
[1770446151313,11.00013903,2082.0,2081.0,11.49618049]
[1770446151514,11.00013903,2082.0,2081.3,11.49618049]
[1770446154516,11.00013903,2082.0,2081.2,1.22485466]
[1770446154816,11.00013903,2082.0,2081.2,12.72103515]
[1770446160216,11.00013903,2081.6,2080.9,2.87554742]
[1770446160422,11.00013903,2081.6,2080.8,11.49618049]
[1770446160612,11.00013903,2081.6,2080.6,11.49618049]
[1770446161024,11.00013903,2081.4,2080.6,11.49618049]
[1770446161226,11.00013903,2081.4,2080.5,12.72103515]
[1770446162824,11.00013903,2081.4,2080.8,11.49618049]
[1770446163120,11.00013903,2081.4,2081.0,11.49618049]
[1770446163624,11.00013903,2081.4,2080.8,11.49618049]
[1770446164827,11.00013903,2081.4,2080.6,11.49618049]
[1770446166230,11.00013903,2081.4,2080.8,11.30101581]
[1770446173828,11.00013903,2081.4,2080.6,10.86241055]
[1770446175529,11.13801739,2081.9,2081.2,10.86241055]
[1770446175930,11.13801739,2081.9,2081.4,10.86241055]
[1770446176137,6.60931918,2081.9,2081.4,10.86241055]
[1770446180245,11.13801739,2082.2,2081.4,10.86241055]
[1770446182240,10.16252883,2082.4,2082.0,10.86241055]
[1770446182444,11.13801739,2082.7,2082.2,10.86241055]
[1770446183247,11.14216763,2082.7,2082.2,10.86594548]
[1770446183642,0.00415024,2082.7,2082.2,10.86594548]
[1770446183847,11.13801739,2083.3,2082.4,10.86241055]
[1770446184745,11.14179386,2083.3,2082.4,10.86241055]
[1770446186647,12.36664852,2083.3,2082.4,10.86241055]
[1770446188244,11.14179386,2083.3,2082.5,1.22485466]
[1770446188549,11.14179386,2083.3,2082.8,10.86241055]
[1770446188550,0.00377647,2083.3,2082.8,10.86241055]
[1770446189443,11.13801739,2084.9,2082.8,10.86241055]
[1770446189644,19.96357708,2085.2,2084.6,10.86241055]
[1770446189844,28.76028501,2085.6,2085.0,13.31211987]
[1770446190043,12.64316772,2085.6,2085.5,10.86241055]
[1770446190239,12.36287205,2086.0,2085.0,10.86241055]
[1770446190549,11.13801739,2085.5,2084.6,10.86241055]
[1770446191551,11.13801739,2085.7,2084.6,10.86724537]
[1770446192149,11.13801739,2085.7,2084.6,0.00483482]
[1770446196247,10.97113889,2085.5,2084.6,0.00483482]
[1770446198348,10.97113889,2085.5,2084.6,11.14226779]
[1770446202356,1.97773601,2085.4,2083.6,11.13743297]
[1770446202557,10.97113889,2085.3,2083.6,11.13743297]
[1770446202758,10.97113889,2085.3,2083.6,13.11516898]
[1770446202958,10.97113889,2085.3,2083.7,11.13743297]
[1770446203360,10.97113889,2085.3,2083.7,11.14229983]
[1770446203756,10.97113889,2085.3,2084.0,11.13743297]
[1770446204164,10.97113889,2085.3,2084.1,11.13743297]
[1770446205261,10.97113889,2085.3,2084.3,11.13743297]
[1770446205466,10.97113889,2085.3,2084.5,11.13743297]
[1770446206161,10.97113889,2085.3,2084.6,2.78629068]
[1770446206365,10.97113889,2085.3,2084.4,5.60619386]
[1770446206569,10.97113889,2085.3,2084.5,6.35890553]
[1770446206764,10.97113889,2085.3,2084.6,9.45058392]
[1770446206960,10.97113889,2085.3,2084.6,2.81990318]
[1770446207265,10.97113889,2085.3,2084.8,2.81990318]
[1770446207767,10.97113889,2085.3,2084.9,9.4181635]
[1770446207967,10.97113889,2085.3,2084.9,2.78629068]
[1770446208164,0.00559933,2086.0,2084.9,2.81990318]
[1770446208165,10.97113889,2085.9,2084.9,2.81990318]
[1770446209168,10.97113889,2085.9,2085.0,9.47384569]
[1770446209358,10.97113889,2085.9,2084.5,2.95466246]
[1770446209359,10.97113889,2085.7,2084.6,4.22985477]
[1770446209560,10.97113889,2085.7,2084.5,4.22985477]
[1770446210268,10.97113889,2085.7,2084.4,4.22985477]
[1770446211272,10.97113889,2085.7,2084.4,15.36728774]
[1770446211474,10.97113889,2085.7,2084.5,11.13743297]
[1770446211674,10.97113889,2085.7,2084.5,15.36728774]
[1770446212973,10.97113889,2085.7,2084.6,15.36728774]
[1770446214168,10.97113889,2085.7,2084.7,11.13743297]
[1770446214374,10.97113889,2085.7,2084.7,15.36728774]
[1770446214882,10.97113889,2085.7,2084.8,4.22985477]
[1770446215273,10.97113889,2085.6,2084.7,4.22985477]
[1770446215674,10.97113889,2085.6,2084.8,4.22985477]
[1770446216776,10.97113889,2085.4,2084.3,11.13743297]
[1770446216976,10.97113889,2085.4,2084.4,11.13743297]
[1770446217676,10.97113889,2085.4,2084.5,11.13743297]
[1770446218277,10.97113889,2085.4,2084.6,11.13743297]
[1770446219284,10.97113889,2085.4,2084.8,11.13743297]
[1770446219880,10.97113889,2085.4,2084.6,7.04975796]
[1770446220078,10.97113889,2085.4,2084.4,7.04975796]
[1770446220380,11.05463918,2085.4,2084.1,11.13743297]
[1770446221276,10.97113889,2085.2,2084.3,11.13743297]
[1770446221475,10.97113889,2085.2,2084.4,5.50217511]
[1770446221685,10.97113889,2085.2,2084.2,11.13743297]
[1770446221983,10.97113889,2085.2,2084.3,5.50285743]
[1770446222183,10.97113889,2085.2,2084.3,11.13743297]
[1770446222386,10.97113889,2085.2,2084.1,11.13743297]
[1770446222586,10.97113889,2085.2,2084.2,5.48473032]
[1770446222786,10.97113889,2085.2,2083.9,11.13743297]
[1770446222988,10.97113889,2085.2,2084.0,5.4863093]
[1770446223187,10.97113889,2085.2,2084.1,5.4863093]
[1770446223482,10.97113889,2085.2,2084.2,5.4863093]
[1770446223787,10.97113889,2085.2,2084.0,11.13743297]
[1770446223988,10.97113889,2085.2,2084.1,5.48400313]
[1770446224187,10.97113889,2085.2,2083.8,11.13743297]
[1770446224386,10.97113889,2085.2,2083.9,5.48326654]
[1770446224683,10.97113889,2084.7,2083.7,0.00486686]
[1770446225084,10.97113889,2084.7,2083.7,11.14229983]
[1770446225987,10.81565502,2085.2,2083.9,11.19635045]
[1770446226180,10.81565502,2085.2,2084.1,11.19635045]
[1770446227190,10.81565502,2085.2,2084.3,11.19635045]
[1770446227583,10.81565502,2085.2,2084.5,11.19635045]
[1770446228185,10.81565502,2085.2,2083.8,11.19635045]
[1770446228388,10.81565502,2085.2,2084.0,11.19635045]
[1770446228777,10.81565502,2085.2,2083.8,11.19635045]
[1770446228983,10.81565502,2085.2,2083.9,5.45221531]
[1770446229181,10.81565502,2085.2,2083.9,11.02649459]
[1770446238503,11.72525378,2085.0,2083.7,11.03136145]
[1770446248514,11.96522378,2085.0,2083.7,11.03136145]
[1770446252117,11.72525378,2084.9,2083.7,11.03136145]
[1770446256023,11.19606167,2084.7,2083.7,11.03136145]
[1770446256517,11.19606167,2084.5,2083.5,10.89469486]
[1770446256817,11.19606167,2084.4,2083.5,10.89469486]
[1770446257610,0.00511658,2084.4,2083.5,10.9006567]
[1770446259613,11.20117825,2084.4,2083.5,10.9006567]
[1770446266418,0.00511658,2084.4,2083.5,10.9006567]
[1770446270824,11.20117825,2084.4,2083.5,10.9006567]
[1770446273030,11.20117825,2084.4,2083.6,10.89469486]
[1770446274025,0.00511658,2084.4,2083.6,10.89469486]
[1770446275831,0.00511658,2084.4,2083.6,13.76476064]
[1770446276029,0.00511658,2084.4,2083.7,10.89469486]
[1770446276224,11.19606167,2084.8,2083.7,10.89469486]
[1770446276428,11.19606167,2085.0,2083.7,10.89469486]
[1770446277329,11.20030355,2085.0,2083.7,10.89469486]
[1770446277524,11.20030355,2085.0,2083.8,10.89469486]
[1770446279032,11.20030355,2085.0,2083.9,10.89469486]
[1770446282529,0.00424188,2085.0,2083.9,10.89469486]
[1770446282932,0.00424188,2085.0,2084.0,10.89469486]
[1770446283727,11.20030355,2085.0,2084.0,10.89469486]
[1770446296747,10.83025781,2084.8,2083.9,11.39766997]
[1770446298844,15.64325781,2084.8,2083.6,11.39766997]
[1770446299052,10.83025781,2084.4,2083.6,11.33866997]
[1770446299243,10.83025781,2084.4,2083.5,0.00596184]
[1770446299551,10.83025781,2084.4,2083.5,11.40363181]
[1770446308452,0.24,2084.7,2083.5,11.40363181]
[1770446308656,10.83025781,2084.6,2083.5,11.40363181]
[1770446311153,10.83025781,2084.9,2083.5,11.40363181]
[1770446311953,10.83025781,2084.9,2083.6,11.39766997]
[1770446312346,10.83025781,2084.9,2083.6,14.2683374]
[1770446312551,10.83025781,2084.9,2083.7,11.39766997]
[1770446313457,10.83449969,2085.0,2083.8,11.39766997]
[1770446319364,12.30047672,2085.0,2084.0,10.71074837]
[1770446319550,11.56991924,2084.5,2084.0,10.71074837]
[1770446319757,1.47021891,2085.0,2083.5,10.71671021]
[1770446319758,11.56991924,2084.1,2083.5,10.71671021]
[1770446320355,1.46597703,2084.4,2083.5,10.71671021]
[1770446320559,11.56991924,2084.4,2083.5,12.18268724]
[1770446320761,11.56991924,2084.1,2083.5,10.71671021]
[1770446322458,11.56991924,2084.2,2083.5,10.71671021]
[1770446322664,11.56991924,2084.8,2083.5,10.71671021]
[1770446324066,11.56991924,2084.7,2083.5,10.71671021]
[1770446331274,11.56991924,2084.8,2083.5,10.71671021]
[1770446331668,11.56991924,2084.8,2083.7,10.71074837]
[1770446332669,11.57416112,2085.0,2083.9,10.71074837]
[1770446339871,0.00424188,2085.0,2083.9,10.71074837]
[1770446340173,0.00424188,2085.0,2084.0,15.85429211]
[1770446340477,0.00424188,2085.0,2084.3,10.71074837]
[1770446340679,11.56991924,2085.3,2084.3,10.71074837]
[1770446341172,11.65341883,2085.7,2084.3,10.71074837]
[1770446341372,11.56991924,2085.7,2084.3,10.71074837]
[1770446341773,11.57494848,2085.7,2084.3,10.71074837]
[1770446348581,11.65844306,2085.7,2084.3,10.71074837]
[1770446349381,11.05963972,2085.6,2084.3,10.71074837]
[1770446349578,11.05963972,2085.6,2084.1,10.6878594]
[1770446352377,15.86663972,2085.6,2084.1,10.6878594]
[1770446352574,10.81973972,2085.5,2084.1,10.6878594]
[1770446353680,10.81973972,2085.2,2084.1,10.6878594]
[1770446357988,10.81973972,2084.9,2083.9,10.6878594]
[1770446358489,10.81973972,2084.7,2083.7,10.6878594]
[1770446359982,10.81973972,2084.5,2083.5,0.00596184]
[1770446360687,10.81973972,2084.5,2083.6,10.6878594]
[1770446372587,10.81973972,2084.6,2083.6,10.6878594]
[1770446372788,10.81973972,2085.1,2083.6,10.6878594]
[1770446377401,11.62779971,2085.0,2083.6,10.6878594]
[1770446382307,11.62779971,2084.9,2083.6,10.6878594]
[1770446386500,8.59061629,2085.0,2083.6,10.6878594]
[1770446386707,11.62779971,2085.1,2083.9,14.49699158]
[1770446387908,11.62779971,2085.3,2084.1,14.49699158]
[1770446389212,11.62779971,2085.3,2084.1,11.62632415]
[1770446394213,13.6114143,2085.7,2084.1,11.62632415]
[1770446394618,11.62779971,2085.5,2084.1,11.62632415]
[1770446395111,1.97858535,2085.4,2084.1,11.62632415]
[1770446395311,11.62779971,2085.3,2084.1,11.62632415]
[1770446395618,1.97858535,2085.4,2084.1,11.62632415]
[1770446395619,11.62779971,2085.0,2084.1,11.62632415]
[1770446399119,11.62779971,2085.1,2084.1,11.62632415]
[1770446407918,8.67411428,2085.6,2084.1,11.62632415]
[1770446408124,10.93295821,2085.5,2084.1,11.62632415]
[1770446415431,11.40946022,2085.6,2084.8,11.61073603]
[1770446416032,0.00502924,2085.7,2084.8,11.61073603]
[1770446416231,11.41448946,2085.7,2084.8,11.61073603]
[1770446416531,0.00502924,2085.7,2084.8,11.61073603]
[1770446416731,0.00502924,2085.7,2085.2,11.61073603]
[1770446416930,0.00502924,2085.7,2085.2,11.6142896]